bitfinex/quotes_SOLUSD_20251024
["timestamp","ask_amount","ask_price","bid_price","bid_amount"]
[1761293002527,25.48274721,191.98,191.97,0.1]
[1761293003028,26.20274721,191.98,191.97,0.1]
[1761293003795,23.6,191.98,191.97,0.1]
[1761293003999,22.88,191.98,191.97,0.1]
[1761293004322,23.6,191.98,191.97,0.1]
[1761293004722,22.88,191.98,191.97,0.1]
[1761293005326,22.88,191.98,191.97,50.1]
[1761293005833,0.72,192.03,191.99,50.0]
[1761293006019,3.32274721,192.03,191.99,50.0]
[1761293006218,22.88,192.01,191.99,50.0]
[1761293007407,22.88,192.01,191.99,55.20854511]
[1761293007601,22.88,192.01,191.99,55.86854511]
[1761293008030,22.88,192.01,191.99,55.20854511]
[1761293008831,39.76274721,192.04,192.01,50.0]
[1761293009130,0.68,192.03,192.01,50.0]
[1761293009526,22.88,192.05,192.03,50.0]
[1761293009725,36.44,192.04,192.03,50.0]
[1761293010521,23.56,192.05,192.03,50.0]
[1761293010731,22.88,192.05,192.03,50.0]
[1761293011433,0.68,192.04,192.03,50.0]
[1761293011625,22.88,192.05,192.03,50.0]
[1761293011804,23.56,192.05,192.03,50.0]
[1761293012202,26.16274721,192.05,192.03,50.0]
[1761293014630,25.48274721,192.05,192.03,50.0]
[1761293015138,22.88,192.05,192.03,50.0]
[1761293015322,23.56,192.05,192.03,50.0]
[1761293015519,22.88,192.05,192.03,50.0]
[1761293015724,26.16274721,192.05,192.03,50.0]
[1761293016745,26.16274721,192.05,192.0,52.60274721]
[1761293016746,22.88,192.02,191.99,10.87647521]
[1761293016908,2.60274721,192.0,191.97,10.97647521]
[1761293017112,2.60274721,191.98,191.97,0.1]
[1761293017313,39.12274721,191.98,191.97,0.1]
[1761293017541,43.66093304,191.98,191.97,0.1]
[1761293018035,3.85818583,191.98,191.97,0.1]
[1761293018332,39.12274721,191.99,191.97,0.1]
[1761293018510,39.80274721,191.99,191.97,0.1]
[1761293018712,6.46073217,191.98,191.97,0.1]
[1761293018937,7.14073217,191.98,191.97,0.1]
[1761293020338,66.60073217,191.98,191.97,0.1]
[1761293020516,71.80960809,191.98,191.97,0.1]
[1761293023418,67.95162313,191.98,191.97,0.1]
[1761293023695,71.80425984,191.98,191.97,0.1]
[1761293023947,66.59538392,191.98,191.97,0.1]
[1761293024320,63.31263671,191.98,191.97,0.1]
[1761293024533,22.88,191.98,191.97,0.1]
[1761293026826,22.88,191.98,191.97,13.36301855]
[1761293027028,102.65,192.04,192.01,50.0]
[1761293027230,36.56,192.03,192.01,50.0]
[1761293027655,37.21,192.03,192.01,50.0]
[1761293028150,36.56,192.03,192.01,50.0]
[1761293028353,22.88,191.99,191.97,0.1]
[1761293028660,60.13,191.99,191.97,50.1]
[1761293030356,61.79654334,191.99,191.97,50.1]
[1761293030945,22.88,191.97,191.96,0.1]
[1761293031150,42.11632562,191.97,191.96,0.1]
[1761293031337,4.49978228,191.97,191.96,0.1]
[1761293031651,24.54654334,191.97,191.96,0.1]
[1761293031832,25.19654334,191.97,191.96,0.1]
[1761293032458,29.0450684,191.97,191.96,0.1]
[1761293033679,25.19654334,191.97,191.96,0.1]
[1761293034068,11.37396337,191.97,191.96,0.1]
[1761293035970,9.70726042,191.97,191.96,0.1]
[1761293036189,10.72380376,191.97,191.96,0.1]
[1761293036347,11.37380376,191.97,191.96,0.1]
[1761293037248,10.72380376,191.97,191.96,0.1]
[1761293037449,9.70726042,191.97,191.96,0.1]
[1761293037651,11.37380376,191.97,191.96,0.1]
[1761293038445,3.84811316,191.97,191.96,0.82]
[1761293038647,38.36654334,191.97,191.96,0.1]
[1761293039447,36.7,191.97,191.96,0.82]
[1761293039652,36.7,191.97,191.96,0.1]
[1761293039870,36.7,191.97,191.96,0.82]
[1761293040257,22.88,191.98,191.96,0.82]
[1761293040584,22.88,191.97,191.96,0.1]
[1761293041768,29.7556906,191.97,191.96,0.1]
[1761293042374,33.60944773,191.97,191.96,0.1]
[1761293043282,34.25974295,191.97,191.96,0.1]
[1761293045086,70.93974295,191.97,191.96,0.1]
[1761293046082,69.27319961,191.97,191.96,0.1]
[1761293046281,3.85405235,191.97,191.96,0.1]
[1761293046483,9.06319961,191.97,191.96,0.1]
[1761293046684,10.72974295,191.97,191.96,0.1]
[1761293046876,11.37974295,191.97,191.96,0.1]
[1761293048703,9.06319961,191.97,191.96,0.1]
[1761293048883,10.72974295,191.97,191.96,0.1]
[1761293049070,11.37974295,191.97,191.96,0.1]
[1761293051788,9.71319961,191.97,191.96,0.1]
[1761293052778,46.37319961,191.97,191.96,0.1]
[1761293056469,46.37319961,191.97,191.94,0.2]
[1761293056470,102.0,191.96,191.94,0.2]
[1761293056682,42.16059569,191.95,191.94,0.2]
[1761293056890,42.88059569,191.95,191.94,0.2]
[1761293057992,22.88,191.93,191.92,0.2]
[1761293058198,65.04059569,191.93,191.92,0.2]
[1761293058494,65.76059569,191.93,191.92,0.2]
[1761293058891,70.97082858,191.93,191.92,0.2]
[1761293062004,0.72,191.92,191.9,0.1]
[1761293062203,1.66654334,191.86,191.85,0.1]
[1761293062406,42.86059569,191.86,191.85,0.1]
[1761293062877,48.07272953,191.86,191.85,0.1]
[1761293064680,47.35272953,191.86,191.85,0.1]
[1761293065200,48.07272953,191.86,191.85,0.1]
[1761293066803,46.40618619,191.86,191.85,0.1]
[1761293066987,48.07272953,191.86,191.85,0.1]
[1761293068401,46.40618619,191.86,191.85,0.1]
[1761293068583,48.07272953,191.86,191.85,0.1]
[1761293068907,47.33272953,191.86,191.85,0.1]
[1761293069105,45.66618619,191.86,191.85,0.1]
[1761293069287,48.04272953,191.86,191.85,0.1]
[1761293069604,47.33272953,191.86,191.85,0.1]
[1761293070305,43.47867718,191.86,191.85,0.1]
[1761293070480,43.47867718,191.86,191.85,0.77]
[1761293071102,41.81213384,191.86,191.85,0.1]
[1761293071295,38.26654334,191.86,191.85,0.77]
[1761293071587,43.47867718,191.86,191.85,0.77]
[1761293072587,22.88,191.86,191.85,0.1]
[1761293072787,59.46,191.86,191.85,0.1]
[1761293073002,59.46,191.86,191.85,0.77]
[1761293073387,59.46,191.86,191.85,0.1]
[1761293073997,61.83654334,191.86,191.85,0.1]
[1761293074306,60.17,191.86,191.85,0.1]
[1761293074494,61.12654334,191.86,191.85,0.1]
[1761293074812,66.33867718,191.86,191.85,0.1]
[1761293075226,61.12654334,191.86,191.85,0.77]
[1761293075720,66.33867718,191.86,191.85,0.77]
[1761293076993,66.33867718,191.86,191.85,0.1]
[1761293077195,61.12654334,191.86,191.85,0.1]
[1761293077406,61.83654334,191.86,191.85,0.1]
[1761293077913,67.04867718,191.86,191.85,0.1]
[1761293078217,70.89223665,191.86,191.85,0.1]
[1761293079089,70.89223665,191.86,191.84,0.1]
[1761293079292,70.89223665,191.86,191.8,0.2]
[1761293079293,22.88,191.82,191.8,0.2]
[1761293079489,22.88,191.78,191.76,0.1]
[1761293079803,38.22654334,191.77,191.76,0.1]
[1761293080011,38.24654334,191.77,191.76,0.1]
[1761293080417,36.58,191.77,191.76,0.1]
[1761293081112,36.58,191.77,191.76,0.79]
[1761293081436,38.24654334,191.77,191.76,0.79]
[1761293081927,38.24654334,191.77,191.76,0.1]
[1761293082103,43.4611233,191.77,191.76,0.1]
[1761293083112,41.79457996,191.77,191.76,0.1]
[1761293083321,43.4611233,191.77,191.76,0.1]
[1761293083924,41.79457996,191.77,191.76,0.79]
[1761293084121,61.12654334,191.77,191.76,0.79]
[1761293084323,59.44,191.77,191.76,0.79]
[1761293084906,22.88,191.77,191.76,0.79]
[1761293085133,103.66654334,191.82,191.77,50.0]
[1761293085332,38.24654334,191.82,191.79,50.0]
[1761293085536,22.88,191.8,191.79,50.0]
[1761293086026,36.58,191.82,191.79,50.0]
[1761293086241,59.46,191.82,191.8,0.69]
[1761293086606,22.88,191.82,191.8,0.69]
[1761293086807,36.56,191.83,191.8,0.69]
[1761293087040,22.88,191.81,191.8,0.69]
[1761293088348,5.21265908,191.85,191.81,50.0]
[1761293088515,36.56,191.84,191.81,50.0]
[1761293088715,59.44,191.84,191.82,0.69]
[1761293088909,36.56,191.84,191.82,0.69]
[1761293089342,5.21214043,191.86,191.83,50.0]
[1761293089343,2.60836512,191.86,191.83,50.0]
[1761293089518,36.56,191.86,191.83,50.0]
[1761293089713,39.16836512,191.87,191.84,0.69]
[1761293090136,22.88,191.85,191.84,0.69]
[1761293090321,36.56,191.88,191.87,50.0]
[1761293090522,36.56,191.88,191.87,50.69]
[1761293091420,22.88,191.88,191.87,50.69]
[1761293091845,2.60836512,191.89,191.87,50.69]
[1761293092141,2.60836512,191.89,191.88,0.69]
[1761293094455,22.88,191.87,191.84,50.0]
[1761293094749,2.60836512,191.86,191.85,50.69]
[1761293095715,59.42,191.87,191.85,50.69]
[1761293095716,59.42,191.87,191.85,50.0]
[1761293095926,2.60836512,191.86,191.85,50.0]
[1761293097043,22.88,191.87,191.85,55.90239423]
[1761293097229,25.48836512,191.87,191.85,50.69]
[1761293097430,22.88,191.87,191.86,11.56647521]
[1761293098331,22.88,191.88,191.87,50.0]
[1761293098544,22.88,191.88,191.87,50.69]
[1761293099520,25.48836512,191.88,191.87,50.69]
[1761293099729,22.88,191.88,191.87,50.69]
[1761293100736,22.88,191.88,191.87,0.69]
[1761293100942,25.48836512,191.88,191.86,10.87647521]
[1761293101339,25.48836512,191.88,191.86,11.56647521]
[1761293101541,22.88,191.88,191.87,50.69]
[1761293101926,22.88,191.87,191.86,50.0]
[1761293102246,22.88,191.87,191.86,50.69]
[1761293102628,3.29836512,191.87,191.84,100.0]
[1761293102836,2.60836512,191.85,191.84,110.87647521]
[1761293103034,2.60836512,191.85,191.84,50.0]
[1761293103334,3.29836512,191.85,191.84,50.0]
[1761293103848,2.60836512,191.85,191.84,50.0]
[1761293105744,64.59230347,191.86,191.84,50.0]
[1761293105922,22.88,191.87,191.86,50.0]
[1761293106126,26.7305149,191.87,191.84,50.0]
[1761293106428,25.48836512,191.85,191.84,50.0]
[1761293106641,61.98836512,191.85,191.84,50.0]
[1761293107230,36.5,191.85,191.84,50.0]
[1761293107440,59.38,191.85,191.84,50.69]
[1761293107746,61.98836512,191.85,191.84,50.0]
[1761293107938,36.5,191.85,191.84,50.0]
[1761293108144,39.10836512,191.85,191.84,50.0]
[1761293108949,36.5,191.85,191.84,50.0]
[1761293109847,22.88,191.85,191.84,50.0]
[1761293110053,36.5,191.86,191.84,50.0]
[1761293110845,36.5,191.86,191.84,50.69]
[1761293111331,36.5,191.86,191.84,50.0]
[1761293111549,36.5,191.86,191.85,0.71]
[1761293112031,161.38,191.88,191.86,50.0]
[1761293112355,2.60836512,191.93,191.89,50.0]
[1761293112356,0.69,191.92,191.89,50.0]
[1761293112555,36.5,191.91,191.89,50.0]
[1761293113447,107.89999573,191.94,191.9,0.71]
[1761293113773,22.88,191.91,191.9,0.71]
[1761293114052,22.88,191.9,191.89,50.0]
[1761293114251,22.88,191.9,191.89,50.71]
[1761293115546,69.12948241,191.9,191.84,10.87647521]
[1761293115867,2.60836512,191.85,191.8,50.0]
[1761293116155,22.88,191.81,191.78,100.71]
[1761293116755,22.88,191.81,191.78,105.92428007]
[1761293117266,43.69508515,191.95,191.79,10.87647521]
[1761293117557,0.69,191.86,191.8,50.0]
[1761293117769,59.38,191.85,191.8,50.0]
[1761293118144,22.88,191.83,191.82,50.0]
[1761293118846,22.88,191.83,191.82,50.71]
[1761293119736,22.88,191.83,191.8,55.92376046]
[1761293119939,22.88,191.83,191.8,58.53212558]
[1761293120248,22.88,191.83,191.81,0.71]
[1761293122138,22.88,191.83,191.81,3.31836512]
[1761293122739,22.88,191.83,191.81,8.53184972]
[1761293122940,22.88,191.83,191.82,50.71]
[1761293123439,124.88,191.86,191.84,50.0]
[1761293123636,124.88,191.86,191.85,2.60836512]
[1761293123841,128.72688524,191.86,191.85,2.60836512]
[1761293124139,124.88,191.86,191.85,2.60836512]
[1761293125476,22.88,191.87,191.86,50.0]
[1761293125663,22.88,191.87,191.86,50.71]
[1761293126272,22.88,191.87,191.86,50.0]
[1761293126468,22.88,191.87,191.86,50.71]
[1761293126771,22.88,191.87,191.86,55.92213384]
[1761293126948,102.0,191.92,191.88,50.0]
[1761293127154,59.38,191.9,191.88,52.60836512]
[1761293127469,36.5,191.9,191.88,52.60836512]
[1761293127874,36.5,191.9,191.88,50.0]
[1761293128079,36.5,191.9,191.88,52.60836512]
[1761293128276,36.5,191.9,191.88,53.28836512]
[1761293128476,36.5,191.9,191.88,50.0]
[1761293128678,36.5,191.9,191.89,2.60836512]
[1761293128971,161.38,191.92,191.9,50.0]
[1761293129173,3.85304241,191.91,191.9,50.0]
[1761293133768,3.85304241,191.91,191.9,50.68]
[1761293134070,3.85304241,191.91,191.9,58.49941254]
[1761293134476,3.85304241,191.91,191.9,50.0]
[1761293135073,3.85304241,191.91,191.9,55.89104742]
[1761293135465,59.38,191.94,191.92,50.0]
[1761293135682,3.85587742,191.93,191.92,50.0]
[1761293136301,3.85587742,191.93,191.92,50.68]
[1761293136658,3.85587742,191.95,191.92,50.68]
[1761293136859,3.85587742,191.94,191.92,50.68]
[1761293137074,3.85587742,191.93,191.92,50.68]
[1761293137274,3.85587742,191.93,191.92,55.21050437]
[1761293137486,161.38,191.96,191.92,55.21050437]
[1761293137663,3.85485912,191.95,191.92,55.21050437]
[1761293137866,3.85485912,191.94,191.92,55.89050437]
[1761293138079,162.07,191.96,191.92,55.89050437]
[1761293138285,3.85467426,191.95,191.92,55.89050437]
[1761293139583,4.54467426,191.95,191.92,50.68]
[1761293139785,3.85467426,191.95,191.92,50.68]
[1761293140992,3.85467426,191.95,191.92,55.89039978]
[1761293142185,37.18,191.94,191.9,50.0]
[1761293142390,3.85467426,191.93,191.9,50.0]
[1761293142585,4.55467426,191.93,191.9,50.7]
[1761293142889,3.85467426,191.93,191.9,50.7]
[1761293143388,3.85467426,191.93,191.9,55.21104527]
[1761293143586,4.55467426,191.93,191.9,55.21104527]
[1761293143762,3.85467426,191.93,191.9,55.91104527]
[1761293143967,4.55467426,191.93,191.9,55.21104527]
[1761293145277,0.7,191.93,191.9,55.21104527]
[1761293145891,0.7,191.93,191.88,58.5197015]
[1761293146091,39.08836512,191.92,191.88,50.0]
[1761293146265,25.48836512,191.89,191.82,50.0]
[1761293146470,2.60836512,191.86,191.82,50.0]
[1761293146668,2.60836512,191.86,191.8,50.7]
[1761293146669,36.48,191.85,191.81,50.0]
[1761293146877,37.18,191.85,191.81,50.0]
[1761293147474,37.18,191.85,191.81,50.7]
[1761293147669,36.48,191.85,191.81,50.7]
[1761293147874,36.48,191.85,191.82,0.7]
[1761293149094,36.48,191.85,191.83,50.0]
[1761293149676,37.18,191.85,191.83,50.0]
[1761293149995,36.48,191.85,191.83,50.0]
[1761293151494,36.48,191.85,191.83,50.7]
[1761293151696,36.48,191.85,191.84,0.7]
[1761293151999,22.88,191.85,191.84,0.7]
[1761293152997,22.88,191.85,191.83,50.0]
[1761293153193,22.88,191.85,191.83,50.7]
[1761293153578,22.88,191.85,191.83,50.0]
[1761293153785,22.88,191.85,191.84,0.7]
[1761293154506,36.5,191.87,191.85,50.0]
[1761293155982,36.5,191.87,191.85,50.7]
[1761293157075,102.0,191.88,191.87,50.0]
[1761293157373,138.48,191.88,191.87,50.7]
[1761293157791,138.48,191.88,191.87,50.0]
[1761293160098,138.48,191.88,191.87,50.7]
[1761293160411,36.48,191.92,191.89,50.0]
[1761293160905,36.48,191.92,191.89,50.7]
[1761293161209,36.48,191.92,191.89,50.0]
[1761293161392,37.18,191.92,191.89,50.0]
[1761293161784,37.18,191.92,191.89,50.7]
[1761293163815,37.18,191.92,191.89,50.0]
[1761293164014,42.39059177,191.92,191.89,50.0]
[1761293164204,3.85220713,191.91,191.89,50.0]
[1761293164408,22.88,191.9,191.89,50.0]
[1761293166003,22.88,191.9,191.89,50.7]
[1761293166183,22.88,191.9,191.89,50.0]
[1761293166510,22.88,191.9,191.89,50.7]
[1761293168306,22.88,191.9,191.85,51.66941345]
[1761293168307,41.03408447,191.9,191.85,51.66941345]
[1761293168482,9.76540345,191.89,191.85,50.0]
[1761293168688,36.48,191.88,191.85,50.0]
[1761293168890,37.18,191.88,191.85,50.0]
[1761293169091,0.7,191.87,191.85,50.0]
[1761293169499,36.48,191.88,191.85,50.0]
[1761293169892,36.48,191.88,191.86,2.36941345]
[1761293170301,36.48,191.88,191.87,0.7]
[1761293170704,36.48,191.88,191.85,52.36941345]
[1761293170887,36.48,191.88,191.86,0.7]
[1761293172316,5.21145572,191.89,191.86,0.7]
[1761293172514,3.85473104,191.88,191.86,0.7]
[1761293173600,3.85473104,191.88,191.85,50.0]
[1761293173909,3.85473104,191.88,191.85,50.72]
[1761293174698,3.85473104,191.88,191.86,0.72]
[1761293176330,36.48,191.89,191.87,50.0]
[1761293176508,3.85385752,191.88,191.87,50.0]
[1761293177420,3.85385376,191.88,191.87,50.0]
[1761293178023,3.85385376,191.88,191.87,50.72]
[1761293178229,36.48,191.89,191.87,50.0]
[1761293178426,3.85359309,191.88,191.87,50.0]
[1761293179223,36.48,191.89,191.87,50.0]
[1761293179414,3.85295399,191.88,191.87,50.0]
[1761293180328,3.85299895,191.88,191.87,50.0]
[1761293180826,3.85299895,191.88,191.85,50.72]
[1761293181028,3.85299895,191.88,191.86,0.72]
[1761293181908,3.85299895,191.88,191.85,50.0]
[1761293182126,37.18,191.87,191.83,50.72]
[1761293182337,5.52214623,191.86,191.81,61.59647521]
[1761293182513,2.36941345,191.86,191.81,61.59647521]
[1761293182718,37.18,191.85,191.82,0.72]
[1761293182919,38.84941345,191.85,191.81,50.0]
[1761293183236,38.84941345,191.85,191.81,50.72]
[1761293183417,38.84941345,191.85,191.81,50.0]
[1761293183618,1.66941345,191.82,191.79,50.0]
[1761293183824,38.14941345,191.82,191.79,50.0]
[1761293184026,38.84941345,191.82,191.79,50.0]
[1761293184538,1.66941345,191.81,191.78,50.72]
[1761293184710,2.36941345,191.81,191.78,50.0]
[1761293184910,2.36941345,191.81,191.78,50.72]
[1761293185141,43.36265557,191.82,191.78,50.72]
[1761293185320,44.06265557,191.82,191.78,50.72]
[1761293186343,36.48,191.82,191.79,50.72]
[1761293186510,36.48,191.82,191.8,0.72]
[1761293187218,36.48,191.82,191.81,50.0]
[1761293188337,2.38941345,191.86,191.83,50.0]
[1761293188541,38.14941345,191.84,191.78,111.55647521]
[1761293188746,40.33126321,191.83,191.78,100.68]
[1761293188949,3.85126321,191.82,191.8,50.0]
[1761293189121,5.52067666,191.82,191.8,50.0]
[1761293189324,37.2,191.83,191.79,0.68]
[1761293189540,5.52025656,191.82,191.79,0.68]
[1761293189749,1.66941345,191.82,191.79,0.68]
[1761293189946,37.2,191.83,191.79,0.68]
[1761293190125,5.52036061,191.82,191.79,0.68]
[1761293190322,1.66941345,191.82,191.79,0.68]
[1761293190942,1.66941345,191.82,191.8,50.0]
[1761293191151,44.08247083,191.83,191.8,50.0]
[1761293191445,3.85165469,191.82,191.8,50.0]
[1761293191617,3.85165469,191.82,191.8,50.68]
[1761293191814,22.88,191.83,191.82,50.0]
[1761293192042,36.48,191.85,191.82,50.0]
[1761293192214,3.85138545,191.84,191.82,50.68]
[1761293192411,3.85138545,191.84,191.83,0.68]
[1761293192627,3.85138545,191.84,191.82,50.68]
[1761293193745,23.6,191.86,191.85,50.0]
[1761293193920,63.93119066,191.86,191.85,50.0]
[1761293194338,69.1433245,191.86,191.85,50.0]
[1761293194528,69.1433245,191.86,191.83,50.0]
[1761293194716,4.57119066,191.85,191.83,50.0]
[1761293196224,0.72,191.85,191.83,50.0]
[1761293197447,4.57120622,191.85,191.83,50.0]
[1761293197842,41.05120622,191.85,191.83,50.0]
[1761293198144,37.2,191.85,191.83,50.0]
[1761293198333,0.72,191.84,191.83,50.0]
[1761293198722,36.48,191.85,191.83,50.0]
[1761293198964,36.48,191.85,191.83,50.68]
[1761293199327,37.2,191.85,191.83,50.0]
[1761293199629,36.48,191.86,191.85,50.0]
[1761293199849,40.33151276,191.86,191.85,50.0]
[1761293200030,36.48,191.86,191.85,50.0]
[1761293203154,40.33142676,191.86,191.85,50.0]
[1761293203367,47.91298486,191.86,191.83,50.0]
[1761293203657,47.91298486,191.86,191.81,66.08993333]
[1761293203658,1.66941345,191.84,191.81,50.0]
[1761293203822,36.46,191.83,191.81,50.0]
[1761293204756,0.7,191.82,191.81,50.0]
[1761293205053,37.16,191.83,191.81,50.0]
[1761293206263,36.46,191.83,191.81,50.0]
[1761293207064,36.46,191.83,191.81,50.65]
[1761293207852,22.88,191.86,191.85,50.0]
[1761293208059,26.73217332,191.86,191.85,50.0]
[1761293208360,26.73217332,191.86,191.85,50.65]
[1761293209055,3.85217332,191.86,191.85,50.65]
[1761293210854,22.88,191.88,191.85,50.65]
[1761293211035,3.85421709,191.87,191.86,0.65]
[1761293211235,3.85421709,191.87,191.85,50.65]
[1761293213437,3.85614788,191.86,191.85,50.65]
[1761293214138,22.88,191.88,191.85,50.65]
[1761293214340,3.85638145,191.87,191.86,0.65]
[1761293214954,3.85638145,191.87,191.85,50.0]
[1761293215133,22.88,191.88,191.87,50.0]
[1761293215335,26.73653697,191.88,191.87,50.0]
[1761293218160,31.94812754,191.88,191.87,50.0]
[1761293218849,34.55663383,191.88,191.87,50.0]
[1761293219663,26.73653697,191.88,191.87,50.0]
[1761293220842,65.80504326,191.88,191.87,50.0]
[1761293221246,63.19653697,191.88,191.87,50.0]
[1761293221444,71.01663383,191.88,191.87,50.0]
[1761293221646,71.01663383,191.88,191.85,50.65]
[1761293221845,3.85653697,191.87,191.85,50.65]
[1761293222063,3.85653697,191.86,191.85,50.65]
[1761293222261,3.85653697,191.87,191.85,50.65]
[1761293222466,3.85653697,191.86,191.85,50.0]
[1761293222764,64.55159057,191.88,191.87,50.0]
[1761293223066,63.19682569,191.88,191.87,50.0]
[1761293223954,63.17682569,191.88,191.87,50.0]
[1761293224544,26.73682569,191.88,191.87,50.65]
[1761293224947,3.85682569,191.88,191.87,50.65]
[1761293225252,36.44,191.89,191.87,50.65]
[1761293225663,3.85659674,191.88,191.87,50.65]
[1761293225842,3.85659501,191.88,191.87,50.65]
[1761293226042,3.85676327,191.88,191.87,50.65]
[1761293226269,36.44,191.9,191.89,50.0]
[1761293226471,40.29649152,191.9,191.89,50.0]
[1761293227147,40.99649152,191.9,191.89,50.0]
[1761293227864,40.29649152,191.9,191.89,50.0]
[1761293228052,3.85649152,191.9,191.89,50.65]
[1761293228255,36.44,191.91,191.89,50.65]
[1761293229167,0.7,191.96,191.93,50.0]
[1761293229361,22.88,191.94,191.93,50.0]
[1761293229545,3.8550064,191.94,191.93,50.65]
[1761293230154,22.88,191.96,191.95,50.0]
[1761293230359,26.73306937,191.96,191.95,50.0]
[1761293231175,13.02192566,191.99,191.97,50.0]
[1761293231176,3.30850629,191.99,191.97,50.0]
[1761293231354,63.17125928,191.98,191.97,50.0]
[1761293231551,40.29125928,191.98,191.97,50.0]
[1761293231971,3.85125928,191.98,191.97,50.0]
[1761293232284,22.88,192.01,191.97,50.0]
[1761293232285,2.60850629,192.02,192.0,50.0]
[1761293232456,40.9998391,192.01,192.0,50.0]
[1761293232657,39.75850629,192.01,191.98,50.0]
[1761293232853,59.32,192.01,192.0,50.0]
[1761293233061,65.77850028,192.01,192.0,50.0]
[1761293233265,60.03,192.01,191.98,50.0]
[1761293233468,59.32,192.01,191.98,50.0]
[1761293233675,61.92850629,192.01,192.0,50.0]
[1761293234066,62.63850629,192.01,191.97,50.0]
[1761293234266,2.60850629,191.98,191.94,50.0]
[1761293234573,2.60850629,191.96,191.94,50.0]
[1761293234967,2.60850629,191.97,191.94,50.72]
[1761293235778,39.75850629,191.98,191.96,50.0]
[1761293236778,39.04850629,191.98,191.96,50.0]
[1761293236976,2.60850629,191.97,191.94,50.72]
[1761293237484,2.60850629,191.97,191.94,55.92994358]
[1761293237983,2.60850629,191.97,191.94,50.72]
[1761293238163,0.71,191.96,191.92,50.0]
[1761293238362,2.60850629,191.95,191.92,50.0]
[1761293238564,0.71,191.96,191.92,50.72]
[1761293238771,2.60850629,191.95,191.92,50.72]
[1761293238976,0.71,191.96,191.92,50.72]
[1761293239181,2.60850629,191.93,191.92,50.0]
[1761293240574,37.13,191.95,191.92,50.0]
[1761293240575,2.60850629,191.94,191.92,50.0]
[1761293240997,2.60850629,191.93,191.91,50.0]
[1761293241389,2.60850629,191.93,191.92,50.0]
[1761293242283,0.71,191.94,191.92,50.0]
[1761293242470,22.88,191.96,191.91,50.72]
[1761293242471,2.60850629,192.04,191.99,50.0]
[1761293242668,0.91,192.03,191.99,50.0]
[1761293242886,22.88,192.01,191.99,50.0]
[1761293243083,37.13,192.02,191.99,50.0]
[1761293243798,36.42,192.02,192.0,0.72]
[1761293243978,36.42,192.02,192.01,50.0]
[1761293245089,36.42,192.02,192.01,50.72]
[1761293245286,36.42,192.02,192.01,50.0]
[1761293245478,0.2,192.03,192.01,50.0]
[1761293245899,0.91,192.03,192.01,50.0]
[1761293246095,0.2,192.03,192.01,50.0]
[1761293246396,0.71,192.02,192.01,50.0]
[1761293248599,0.2,192.03,192.01,50.7]